Cogmind - Beta 12 *** ADVENTURER MODE // 2023.11.27 @ 15:49:29 Player: Rudolf Result: Destroyed by G-34 Mercenary with Small Laser Performance ------------- Evolutions (1) 500 Regions Visited (2) 400 Robots Destroyed (6) 30 Value Destroyed (75) 75 Prototype IDs (0) 0 Alien Tech Used (0) 0 Bonus (0) 0 TOTAL SCORE: 1005 Bonus ------- None Cogmind --------- Core Integrity 0/400 Matter 244/300 Energy 100/100 System Corruption 0% Temperature Cool (12) Movement Core (100) Ox1 Location -9/Materials Parts ------- > --- POWER (1) -------- (None) > --- PROPULSION (3) --- (None) > --- UTILITY (3) ------ Small Storage Unit Signal Interpreter Improved Targeting Computer > --- WEAPON (2) ------- (None) > --- INVENTORY (8) ---- Light Ion Engine Light Ion Engine Signal Interpreter Medium Armor Plating Hardened Light Armor Plating Small Laser Peak State ------------ > --- POWER ------------ Ion Engine > --- PROPULSION ------- Flight Unit Flight Unit Flight Unit > --- UTILITY ---------- Small Storage Unit Signal Interpreter Improved Targeting Computer > --- WEAPON ----------- Small Laser Light Assault Rifle > --- INVENTORY -------- Light Ion Engine Signal Interpreter Medium Armor Plating Small Laser [Rating: 10] Favorites ----------- Power Ion Engine Engine Ion Engine Propulsion Flight Unit Flight Unit Flight Unit Utility Signal Interpreter Storage Small Storage Unit Processor Signal Interpreter Weapon Small Laser Energy Gun Small Laser Ballistic Gun Light Assault Rifle Build | -11 -10 -9 ------- Run | Jun Mat Mat Slots Evolved 2 | . . 2 Power . | . . . Propulsion 1 | . . 1 Utility 1 | . . 1 Weapon . | . . . Parts Attached 12 | 2 6 4 Power 3 | 2 1 . Engine 3 | 2 1 . Core . | . . . Reactor . | . . . Propulsion 4 | . 3 1 Treads . | . . . Leg . | . . . Wheel . | . . . Hover . | . . . Flight 4 | . 3 1 Utility 3 | . . 3 Device . | . . . Storage 1 | . . 1 Processor 2 | . . 2 Hackware . | . . . Protection . | . . . Artifact . | . . . Weapon 2 | . 2 . Energy Gun 1 | . 1 . Energy Cannon . | . . . Ballistic Gun 1 | . 1 . Ballistic Cannon . | . . . Launcher . | . . . Special Weapon . | . . . Impact Weapon . | . . . Slashing Weapon . | . . . Piercing Weapon . | . . . Special Melee Weapon . | . . . Unidentified Prototypes . | . . . Parts Lost 7 | . 1 6 Power 1 | . . 1 Propulsion 4 | . 1 3 Utility . | . . . Weapon 2 | . . 2 Highest Loss Streak 6 | . 1 6 To Critical Strikes . | . . . Average Slot Usage (%) 49 | . 28 62 Engine 9 | . 12 7 Flight 11 | . 2 16 Storage 6 | . . 9 Processor 11 | . . 18 Energy Gun 5 | . 8 4 Ballistic Gun 5 | . 4 5 Naked Turns . | . . . Heaviest Build 12 | 3 7 12 Greatest Support 12 | 3 8 12 Greatest Overweight (x) 2 | . 2 . Average Overweight (x) . | . . . Largest Inventory Capacity 8 | 5 5 8 Average Capacity 6 | 5 5 7 Most Carried 6 | 5 5 6 Average Carried 4 | 3 4 5 Final Capacity 8 | 5 5 8 Final Carried 6 | 5 4 6 Class Distribution -------------------- 100% | Mutant Dominant Class ---------------- Mutant | -10/Materials Mutant | -9/Materials Resources | -11 -10 -9 ----------- Run | Jun Mat Mat Matter Collected 243 | 195 34 14 Remotely . | . . . Salvage Created 122 | . 122 . Parts 18 | . 18 . Haulers Intercepted . | . . . Recyclers Shooed . | . . . Parts Field Recycled . | . . . Retrieved Matter . | . . . Parts Self-Destructed . | . . . Prevented . | . . . Kills | -11 -10 -9 ------- Run | Jun Mat Mat Combat Hostiles Destroyed 5 | . 5 . Guns 5 | . 5 . Classes Destroyed 3 | . 3 . Worker 1 | . 1 . Swarmer 4 | . 4 . Grunt 1 | . 1 . Best Kill Streak 6 | . 6 . Combat Bots Only 5 | . 5 . Max Kills in Single Turn 1 | . 1 . Gunslinging . | . . . Exploded . | . . . Melee . | . . . Uniques/NPCs Destroyed . | . . . Combat | -11 -10 -9 -------- Run | Jun Mat Mat Damage Taken 977 | . 377 600 Core 544 | . 142 402 Absorbed by Shields . | . . . Core Remaining (%) 71 | 100 43 . Volleys Fired 24 | . 13 11 Largest 2 | . 2 1 Hottest 60 | . 60 20 Shots Fired 27 | . 16 11 Gun 27 | . 16 11 Cannon . | . . . Launcher . | . . . Special . | . . . Kinetic 14 | . 3 11 Thermal 13 | . 13 . Explosive . | . . . Electromagnetic . | . . . Robot Hit Streak 13 | . 3 13 Robot Miss Streak 2 | . 2 . Penetration Max . | . . . Secondary Targets 1 | . 1 . Max Gunslinging Chain 1 | . 1 . Shots Hit Robots 21 | . 10 11 Core Hits 10 | . 7 3 Critical Kills . | . . . Critical Parts Destroyed . | . . . Critical Strikes . | . . . Melee Attacks . | . . . Impact . | . . . Slashing . | . . . Piercing . | . . . Sneak Attacks . | . . . Combat Hostiles . | . . . Follow-up Attacks . | . . . Damage Inflicted 214 | . 126 88 Guns 214 | . 126 88 Cannons . | . . . Explosions . | . . . Melee . | . . . Ramming . | . . . Kinetic 114 | . 26 88 Thermal 100 | . 100 . Explosive . | . . . Electromagnetic . | . . . Impact . | . . . Slashing . | . . . Piercing . | . . . Highest Corruption . | . . . Average Corruption . | . . . Corruption Purged . | . . . Corruption Blocked . | . . . Overload Shots . | . . . Overflow Damage . | . . . Projectiles . | . . . Explosions . | . . . Melee . | . . . Knockbacks . | . . . Impact . | . . . Kinetic . | . . . Secondary . | . . . Self-Inflicted Damage . | . . . Shots . | . . . Rammed . | . . . Targets Rammed . | . . . Kicked . | . . . Crushed . | . . . Highest Temperature 44 | . 44 9 Average Temperature 20 | . 23 7 Received Heat Transfer 501 | . 69 432 Siege Activations . | . . . Robots Corrupted . | . . . Combat Hostiles . | . . . Parts Fried . | . . . Impact Corruptions . | . . . Robots Melted . | . . . Combat Hostiles . | . . . Parts Melted . | . . . Heat Transferred 225 | . 225 . Parts Sabotaged . | . . . Parts Stolen . | . . . Parts Stripped . | . . . Power Chain Reactions . | . . . Missiles Intercepted . | . . . Alert | -11 -10 -9 ------- Run | Jun Mat Mat Peak Influence 152 | . 152 73 Initial 51 | . . 51 Average 42 | . 62 38 Maximum Alert Level . | . . . Low Security (%) 100 | 100 100 100 Level 1 . | . . . Level 2 . | . . . Level 3 . | . . . Level 4 . | . . . Level 5 . | . . . High Security . | . . . Max Security . | . . . Squads Dispatched 1 | . . 1 Investigation . | . . . Extermination . | . . . Reinforcement 1 | . . 1 Assault . | . . . Garrison . | . . . Intercept . | . . . Searches Triggered . | . . . Construction Impeded . | . . . Haulers Reinforced . | . . . Active Scanning Responses . | . . . Cargo Convoy Interrupts . | . . . Stealth | -11 -10 -9 --------- Run | Jun Mat Mat Distress Signals . | . . . Communications Jammed . | . . . Distress Signals . | . . . Times Spotted 12 | . 9 3 Peak Tracking Total 6 | . 6 2 Tactical Retreats . | . . . Traps | -11 -10 -9 ------- Run | Jun Mat Mat Traps Triggered . | . . . Indirectly . | . . . Trap Hack Attempts . | . . . Triggered . | . . . Disarmed . | . . . Reprogrammed 3 | . . 3 Reused . | . . . Traps Extracted . | . . . Installed . | . . . Triggered . | . . . Machines | -11 -10 -9 ---------- Run | Jun Mat Mat Machines Disabled . | . . . Max in Single Turn . | . . . Machines Repaired . | . . . Machines Sabotaged . | . . . Overloaded Fab Kills . | . . . Hacking | -11 -10 -9 --------- Run | Jun Mat Mat Machines Accessed 8 | . 3 5 Terminals 7 | . 3 4 Fabricators . | . . . Repair Stations . | . . . Recycling Units 1 | . . 1 Scanalyzers . | . . . Garrison Access . | . . . Total Hacks 15 | . 6 9 Successful 7 | . 1 6 Failed 8 | . 5 3 Catastrophic 4 | . 2 2 Database Lockouts . | . . . Manual 2 | . . 2 Terminals 14 | . 6 8 Fabricators . | . . . Repair Stations . | . . . Recycling Units 1 | . . 1 Scanalyzers . | . . . Garrison Access . | . . . Terminal Hacks 6 | . 1 5 Level Access Points 1 | . . 1 Branch Access Points 1 | . . 1 Locate Traps 3 | . 1 2 Reprogram Traps 1 | . . 1 Fabricator Hacks . | . . . Repair Station Hacks . | . . . Recycling Unit Hacks 1 | . . 1 Report Inventory 1 | . . 1 Scanalyzer . | . . . Garrison Access Hacks . | . . . Unauthorized Hacks . | . . . Terminals . | . . . Fabricators . | . . . Repair Stations . | . . . Recycling Units . | . . . Scanalyzers . | . . . Garrison Access . | . . . Data Cores Recovered . | . . . Used . | . . . Hacking Detections 7 | . 3 4 Full Trace Events 1 | . 1 . Feedback Events . | . . . Feedback Blocked . | . . . Robot Schematics Acquired . | . . . Robots Built . | . . . Authchips . | . . . Time . | . . . Total Robot Build Rating . | . . . Part Schematics Acquired . | . . . Parts Built . | . . . Authchips . | . . . Time . | . . . Total Part Build Rating . | . . . Parts Repaired . | . . . Time . | . . . Parts Recycled . | . . . Recycled Matter . | . . . Retrieved Matter . | . . . Retrieved Components . | . . . Parts Scanalyzed . | . . . Part Schematics Acquired . | . . . Parts Damaged . | . . . Bothacking | -11 -10 -9 ------------ Run | Jun Mat Mat Used RIF Installer . | . . . Robots Hacked . | . . . Non-combat . | . . . Combat . | . . . Robot Hacks Applied . | . . . Relay Couplers Released . | . . . Fabnet Peak Effective % . | . . . Robots Rewired . | . . . Allies Hacked . | . . . Hacks Repelled . | . . . Allies | -11 -10 -9 -------- Run | Jun Mat Mat Total Allies . | . . . Largest Group . | . . . Highest-Rated Group . | . . . Highest-Rated Ally . | . . . Total Orders . | . . . Ally Attacks . | . . . Total Damage . | . . . Kills . | . . . Allies Corrupted . | . . . Allies Melted . | . . . Intel | -11 -10 -9 ------- Run | Jun Mat Mat Robot Analysis Total . | . . . Derelict Logs Recovered . | . . . Drone Launches . | . . . Drone Recoveries . | . . . Exploration | -11 -10 -9 ------------- Run | Jun Mat Mat Turns Passed 305 | 33 102 170 Spaces Moved 328 | 48 123 157 Core 143 | 48 95 . Treads . | . . . Legs . | . . . Wheels . | . . . Hover . | . . . Flight 185 | . 28 157 Fastest Speed 34 | 50 37 34 Average Speed 42 | 50 50 34 Slowest Speed 150 | 50 150 34 Overloaded Moves . | . . . Propulsion Burnouts . | . . . Robots Hopped . | . . . Cave-ins Triggered . | . . . Exploration Rate (%) 18 | 3 31 22 Regions Visited 2 Branch Regions . Pre-discovered Areas . | . . . Known Exits Taken . | . . . Unknown Exits Taken 2 | 1 1 . Scrap Searched . | . . . Spaces Dug . | . . . Terrain Destroyed . | . . . Melee . | . . . Projectile . | . . . AOE . | . . . Terrain Rammed . | . . . Walls Destroyed . | . . . Machines Disabled . | . . . Actions | -11 -10 -9 --------- Run | Jun Mat Mat Total 467 | 55 147 265 Wait 87 | . . 87 Move 326 | 47 122 157 Hop . | . . . Pick Up 17 | 6 5 6 Fast Attach . | . . . Attach 11 | 1 6 4 Detach . | . . . Swap 1 | 1 . . Drop 1 | . 1 . Fire 24 | . 13 11 Melee . | . . . Ram . | . . . Kick . | . . . Crush . | . . . Escape Stasis . | . . . Rewire . | . . . Trap . | . . . Miscellaneous . | . . . Route ------- -11/Junkyard -10/Materials (discovered 2 exits: *Mat / [*Min]) -9/Materials (discovered 5 exits: *Mat x3 / Min x2) History --------- Turn | Location | Event 5 | -11/Junkyard | Discovered new exit (range 16) 34 | -11/Junkyard | Entered Materials 70 | -10/Materials | Discovered new exit (range 8) 116 | -10/Materials | Core integrity fell below 50% 129 | -10/Materials | Discovered new exit (range 16) 136 | -10/Materials | Entered another Materials area 136 | -9/Materials | Evolved 2 slots: Propulsion x1, Utility x1 165 | -9/Materials | Identified exit to Materials 200 | -9/Materials | Identified exit to Mines 273 | -9/Materials | Core integrity fell below 50% 279 | -9/Materials | Lost 6 parts (1p3n2w) 291 | -9/Materials | Core integrity fell below 20% 306 | -9/Materials | Build established: Mutant 306 | -9/Materials | Destroyed by G-34 Mercenary with Small Laser Last Messages --------------- (49,50) Mines (92,5) Mines Map updated. 00200_ Connecting with Terminal... 00200_ Sml. Laser destroyed. 00200_ K-01 Serf collects debris. 00208_ Flight Unit destroyed. 00210_ K-01 Serf collects debris. 00220_ Lgt. Assault Rifle destroyed. 00222_ K-01 Serf cleans the Recycling Unit. 00231_ K-01 Serf collects debris. 00242_ Ion Engine destroyed. 00244_ O-16 Technician: "IFF HANDSHAKE FAILED. SECURING TERMINAL." 00247_ K-01 Serf collects debris. 00248_ Flight Unit destroyed. 00250_ O-16 Technician uses terminal to summon reinforcements. 00250_ ALERT: Hostiles spotted, dispatching reinforcements to Terminal M009. 00250_ O-16 Technician locks terminal. 00250_ K-01 Serf collects debris. Map ----- +----------------------------------------------------+ | ?????????????#^^^#??????????????? | | ?????????????# #??????????????? | | ?????????????# #??????????????? | | ?????????????# #??????????????? | | ?????????????# #??????????????? | | ????########## #??????????????? | | ????# # #??????????????? | | ????# """ # #??????????????? | | ????# """ # #??????????????? | | ????# """ # #??????????????? | | ????# + #??????????????? | | ????# # #??????????????? | | ????# "Y" # #??????????????? | | ????# """ # #??????????????? | | ????# # #??????????????? | | ????####+##### #??????????????? | | ???????# #???# #??????????????? | | ???????# #???# #??????????????? | | ???????# #???# #??????????????? | | ???????# #???? #??????????????? | | ??????## ##### #??????????????? | | ??????# #??????????????? | | ??????# #??????????????? | | ????### g # ! ????????? | | ????#"" g + ????????? | | ????#"T @ #??????????????? | | ????#"" * ""#??????????????? | | ????### ** Y"#??????????????? | | ??????# ** ""#??????????????? | | ??????# #??????????????? | | ??????# #??????????????? | | ???" + #T######??????????????? | | ?""" # ###???????????????????? | | ?""" # #?????????????????????? | | ? ?# #?????????????????????? | | ####??# #?????????????????????? | | ??????# #?????????????????????? | | ??????#^^^#?????????????????????? | | ??????#^^^+?????????????????????? | | ??????# #?????????????????????? | | ??????# < #?????????????????????? | | ??????# ??????????????????????? | | ??????####??????????????????????? | | ????????????????????????????????? | | ????????????????????????????????? | | ????????????????????????????????? | | ????????????????????????????????? | | ????????????????????????????????? | | ????????????????????????????????? | | ????????????????????????????????? | +----------------------------------------------------+ Best States ------------- Heat Dissipation 28 Energy Generation 10 Energy Capacity 250 Matter Stores 276 Matter Capacity 300 Sight Range 16 Terrain Scan Density 10 Resistance: KI 20 Resistance: TH 20 Resistance: EX 20 Resistance: EM 20 Resistance: I 20 Resistance: S 20 Resistance: P 20 Evasion (%) 63 Targeting Accuracy 6 Offensive Hacking 10 Item Schematics ----------------- None Robot Schematics ------------------ None Fabricated ------------ Nothing Alien Tech Used ----------------- None Achievements -------------- None Challenges ------------ None Game ------ Seed WeldingMetafieldSword Manual? 0 Play Time 00:21:32 Cumulative 54.4 hours Start 2023.11.22 @ 22:57:17 End 2023.11.27 @ 15:49:29 Sessions 2 Manual Loads 0 Difficulty Adventurer Special Mode None Game No. 26 Rogue 0 Adventurer 26 Explorer 0 Win Type - Total 4 Types 2/0/1/1/0/0/0/0/0 Lore% 58 Gallery% 62 Achievement% 40 Wizard Run 0 Options --------- ASCII 1 Keyboard 0 Movement Numpad Keybinds 0 Fullscreen 1 Font 18/Terminus Map View 76x50 Tactical HUD 1 Map Filters NONE Filters NONE Steam 1 RUN: e1d133f6-05f1-42b5-990b-c1765ea4d352